bitfinex-derivatives/quotes_BNBF0:USTF0_20241230
["timestamp","ask_amount","ask_price","bid_price","bid_amount"]
[1735572977604,0.26714337,690.54,687.73,1.07575377]
[1735572977900,0.26714337,690.53,687.73,1.07575377]
[1735572978202,0.26714337,690.52,687.73,1.07575377]
[1735572978402,0.26714337,690.51,687.73,1.07575377]
[1735572978704,0.26714337,690.5,687.73,1.07575377]
[1735572978900,1.06475855,690.34,688.09,1.07575377]
[1735572979099,0.26714337,690.33,688.09,1.07575377]
[1735572979296,0.26714337,690.32,688.09,1.07575377]
[1735572979503,0.26714337,690.31,688.09,1.07575377]
[1735572979702,0.26714337,690.3,688.09,1.07575377]
[1735572980004,0.26714337,690.29,688.3,1.07575377]
[1735572980200,0.26714337,690.28,688.3,1.07575377]
[1735572980401,0.26714337,690.27,688.3,1.07575377]
[1735572980599,0.26714337,690.26,688.3,1.07575377]
[1735572980799,0.26714337,690.25,688.3,1.07575377]
[1735572981003,1.06475855,690.17,688.11,1.07575377]
[1735572981196,0.26714337,690.16,688.11,1.07575377]
[1735572981400,1.06475855,690.17,688.11,1.07575377]
[1735572981401,0.26714337,690.15,688.11,1.07575377]
[1735572981596,0.26714337,690.14,688.11,1.07575377]
[1735572981798,0.26714337,690.13,688.11,1.07575377]
[1735572981997,0.26714337,690.12,688.11,1.07575377]
[1735572982201,0.26714337,690.11,688.11,1.07575377]
[1735572982402,0.26714337,690.1,688.11,1.07575377]
[1735572982703,0.26714337,690.09,688.09,1.07575377]
[1735572982897,0.26714337,690.08,688.09,1.07575377]
[1735572983102,0.26714337,690.07,688.09,1.07575377]
[1735572983294,0.26714337,690.06,688.09,1.07575377]
[1735572983499,0.26714337,690.05,688.09,1.07575377]
[1735572983700,0.26714337,690.04,688.09,1.07575377]
[1735572984004,0.26714337,690.03,688.06,1.07575377]
[1735572984197,0.26714337,690.02,688.06,1.07575377]
[1735572984401,0.26714337,690.01,688.06,1.07575377]
[1735572984597,0.26714337,690.0,688.06,1.07575377]
[1735572984802,0.26714337,689.99,688.06,1.07575377]
[1735572985004,0.26714337,689.98,688.06,1.07575377]
[1735572985205,0.26714337,689.98,687.6,0.69470937]
[1735572985206,0.26714337,689.97,688.12,1.07575377]
[1735572985399,0.26714337,689.96,688.12,1.07575377]
[1735572985604,0.26714337,689.95,688.12,1.07575377]
[1735572985799,0.26714337,689.94,688.12,1.07575377]
[1735572986005,0.26714337,689.93,688.12,1.07575377]
[1735572986207,0.26714337,689.92,688.12,1.07575377]
[1735572986400,0.26714337,689.91,688.12,1.07575377]
[1735572986604,0.26714337,689.9,688.12,1.07575377]
[1735572986801,0.26714337,689.89,688.12,1.07575377]
[1735572987005,0.26714337,689.88,688.12,1.07575377]
[1735572987208,0.26720419,689.87,688.12,1.07575377]
[1735572987399,0.26720419,689.86,688.12,1.07575377]
[1735572987604,0.26720419,689.85,688.01,1.07575377]
[1735572987800,0.26720419,689.84,688.01,1.07575377]
[1735572988108,0.26720419,689.83,688.01,1.07575377]
[1735572988304,0.26720419,689.82,688.01,1.07575377]
[1735572988505,0.26720419,689.81,688.01,1.07575377]
[1735572988802,0.26720419,689.8,688.07,1.07575377]
[1735572989000,0.26720419,689.79,688.07,1.07575377]
[1735572989201,1.06475855,690.07,688.07,1.07575377]
[1735572989401,0.26710441,690.06,688.07,1.07575377]
[1735572989599,1.06475855,690.07,688.07,1.07575377]
[1735572989809,0.26710585,690.06,688.07,1.07575377]
[1735572990006,0.26710585,690.06,688.09,0.29065965]
[1735572990511,0.28983406,690.05,688.17,1.07575377]
[1735572991500,0.28983406,690.05,688.45,1.07575377]
[1735572991901,0.26703325,690.04,688.46,0.29050344]
[1735572992307,0.5568723,690.03,688.46,0.29050344]
[1735572992505,0.26702983,690.02,688.46,0.29050344]
[1735572992702,0.28984247,690.03,688.46,0.29050344]
[1735572992907,0.28984247,690.03,688.63,1.07575377]
[1735572994010,0.26703642,690.02,688.63,1.07575377]
[1735572994208,0.26703642,690.02,688.68,1.07575377]
[1735572994908,0.26706725,690.01,688.68,1.07575377]
[1735572995100,0.26706725,690.0,688.68,1.07575377]
[1735572995301,0.26706725,689.99,688.68,1.07575377]
[1735572995502,0.28984247,690.03,688.5,1.07575377]
[1735572995810,0.26706432,690.02,688.5,1.07575377]
[1735572996510,0.26706432,690.02,688.46,0.29050344]
[1735572996511,0.28984247,690.03,688.47,1.07575377]
[1735572996707,0.26706456,690.02,688.47,1.07575377]
[1735572997310,0.28984247,690.03,688.5,1.07575377]
[1735572997503,0.26706854,690.02,688.5,1.07575377]
[1735572997908,0.28984247,690.03,688.5,1.07575377]
[1735572998109,0.26706757,690.02,688.5,1.07575377]
[1735572998509,0.28984247,690.03,688.54,1.07575377]
[1735572999711,0.28984247,690.03,687.94,1.29090453]
[1735572999712,0.28984247,690.03,688.68,1.07575377]
[1735573000912,0.28984247,690.03,688.55,0.29046547]
[1735573000913,0.28984247,690.03,688.66,1.07575377]
[1735573001112,0.26706023,690.02,688.66,1.07575377]
[1735573001712,0.28984247,690.03,688.66,1.07575377]
[1735573002117,0.28984247,690.03,688.59,1.07575377]
[1735573002416,0.26703054,690.02,688.6,0.29044437]
[1735573002615,0.2670196,690.01,688.6,0.29044437]
[1735573002815,0.28984247,690.03,688.6,0.29044437]
[1735573003019,0.28984247,690.03,688.79,1.07575377]
[1735573003517,0.28984247,690.03,688.8,0.29036004]
[1735573005320,0.28984247,690.03,688.82,1.07575377]
[1735573005519,0.28984247,690.03,688.83,0.2903474]
[1735573005913,1.06475855,690.69,688.83,0.2903474]
[1735573006115,0.28957389,690.67,688.83,0.2903474]
[1735573006317,0.26690647,690.66,688.83,0.2903474]
[1735573007221,0.26690647,690.65,688.83,0.2903474]
[1735573007416,0.28957389,690.67,688.85,1.07575377]
[1735573007417,0.26690647,690.64,688.85,1.07575377]
[1735573007614,0.26696935,690.63,688.85,1.07575377]
[1735573007814,0.26696935,690.62,688.85,1.07575377]
[1735573008013,0.26696935,690.61,688.85,1.07575377]
[1735573008218,0.26696935,690.6,688.85,1.07575377]
[1735573008419,0.28961163,690.58,688.83,0.2903474]
[1735573008620,0.26696935,690.57,688.83,0.2903474]
[1735573008916,0.28962421,690.55,688.83,0.2903474]
[1735573009117,0.26696935,690.54,688.83,0.2903474]
[1735573010021,0.28963679,690.52,688.83,0.2903474]
[1735573010321,0.26698835,690.51,688.83,0.2903474]
[1735573010520,0.28964937,690.49,688.83,0.2903474]
[1735573010717,0.26698835,690.48,688.83,0.2903474]
[1735573010914,0.28966196,690.46,688.83,0.2903474]
[1735573011217,0.26698835,690.45,688.83,0.2903474]
[1735573011622,0.28967455,690.43,688.83,0.2903474]
[1735573011814,0.26698835,690.42,688.83,0.2903474]
[1735573012219,0.28968713,690.4,688.83,0.2903474]
[1735573012421,0.26698835,690.39,688.83,0.2903474]
[1735573013120,0.28969972,690.37,688.83,0.2903474]
[1735573013322,0.26698835,690.36,688.83,0.2903474]
[1735573014316,0.26698835,690.35,688.83,0.2903474]
[1735573014516,0.26698835,690.34,688.83,0.2903474]
[1735573014825,0.26698835,690.33,688.56,1.07575377]
[1735573015017,0.26698835,690.32,688.56,1.07575377]
[1735573015219,0.26698835,690.31,688.51,1.07575377]
[1735573015416,0.26698835,690.3,688.51,1.07575377]
[1735573015717,0.26709242,690.29,688.51,1.07575377]
[1735573015922,0.26709242,690.28,688.51,1.07575377]
[1735573016123,0.28974589,690.26,688.51,1.07575377]
[1735573016326,0.26709111,690.25,688.51,1.07575377]
[1735573016520,0.28974589,690.26,688.45,1.07575377]
[1735573016521,0.28975848,690.23,688.45,1.07575377]
[1735573016720,0.26709111,690.22,688.45,1.07575377]
[1735573017323,0.26709111,690.21,688.45,1.07575377]
[1735573017521,0.28975848,690.23,688.45,1.07575377]
[1735573017722,1.06475855,690.21,688.34,1.07575377]
[1735573017924,0.26715363,690.2,688.34,1.07575377]
[1735573018125,0.26715363,690.19,688.34,1.07575377]
[1735573018319,0.26715363,690.18,688.34,1.07575377]
[1735573018519,0.26715363,690.17,688.34,1.07575377]
[1735573018721,0.26715363,690.16,688.34,1.07575377]
[1735573019018,0.26715363,690.16,687.85,1.29090453]
[1735573019019,1.06475855,690.11,688.35,1.07575377]
[1735573019222,0.26715363,690.1,688.35,1.07575377]
[1735573019421,0.26715363,690.09,688.35,1.07575377]
[1735573019618,0.26715363,690.08,688.35,1.07575377]
[1735573019927,0.26715363,690.08,688.08,1.07575377]
[1735573019928,0.26715363,690.07,688.37,1.07575377]
[1735573020123,0.26715363,690.06,688.37,1.07575377]
[1735573020425,0.26715363,690.05,688.37,1.07575377]
[1735573020625,0.26715912,690.04,688.37,1.07575377]
[1735573020823,0.26715912,690.03,688.37,1.07575377]
[1735573021019,0.26715912,690.03,688.05,0.69778293]
[1735573021020,0.26715912,690.02,688.32,1.07575377]
[1735573021224,0.26715912,690.01,688.32,1.07575377]
[1735573021424,0.26715912,690.0,688.32,1.07575377]
[1735573021623,0.26715912,689.99,688.32,1.07575377]
[1735573021825,0.26715912,689.98,688.32,1.07575377]
[1735573022023,0.26715912,689.97,688.32,1.07575377]
[1735573022223,0.26715912,689.96,688.31,1.07575377]
[1735573022427,0.26715912,690.02,688.31,1.07575377]
[1735573022627,0.26715912,690.01,688.31,1.07575377]
[1735573022828,0.26715912,690.0,688.31,1.07575377]
[1735573023028,0.26711229,689.99,688.31,1.07575377]
[1735573023230,0.28975848,690.23,688.39,1.07575377]
[1735573023231,0.26711229,689.98,688.39,1.07575377]
[1735573023428,0.26711229,689.97,688.39,1.07575377]
[1735573023624,0.26711229,689.96,688.4,0.29052876]
[1735573023827,0.26711229,689.95,688.4,0.29052876]
[1735573024028,0.26711229,689.94,688.4,0.29052876]
[1735573024225,0.26711229,689.93,688.4,0.29052876]
[1735573024431,0.26711229,689.92,688.4,0.29052876]
[1735573024626,0.28975848,690.23,688.4,0.29052876]
[1735573024627,0.26711229,690.06,688.53,1.07575377]
[1735573024824,0.26711229,690.05,688.53,1.07575377]
[1735573025029,1.06475855,690.17,688.53,1.07575377]
[1735573025232,0.26713696,690.16,688.53,1.07575377]
[1735573025628,1.06475855,690.14,688.4,1.36628253]
[1735573025826,0.26713696,690.13,688.4,1.36628253]
[1735573026725,1.06475855,690.1,688.4,0.29052876]
[1735573026930,0.26714351,690.09,688.4,0.29052876]
[1735573027635,1.06475855,690.09,688.4,0.29052876]
[1735573028328,0.28982566,690.07,688.4,0.29052876]
[1735573031234,0.26706638,690.06,688.4,0.29052876]
[1735573031436,0.53412034,690.06,688.53,1.07575377]
[1735573031633,0.26705396,690.05,688.53,1.07575377]
[1735573032432,0.26705396,690.05,688.61,1.07575377]
[1735573033028,0.26703455,690.04,688.61,1.07575377]
[1735573033230,0.26703455,690.03,688.61,1.07575377]
[1735573033837,0.26703455,690.02,688.61,1.07575377]
[1735573034034,0.26703455,690.01,688.59,1.07575377]
[1735573034232,0.26703455,690.05,688.59,1.07575377]
[1735573034435,0.26703455,690.04,688.59,1.07575377]
[1735573034637,0.26703455,690.03,688.59,1.07575377]
[1735573034840,0.26704047,690.02,688.59,1.07575377]
[1735573035138,0.26706638,690.06,688.59,1.07575377]
[1735573036139,0.26706638,690.06,688.4,0.29052876]
[1735573036140,0.26706638,690.06,688.66,1.07575377]
[1735573037241,0.26706638,690.06,688.4,0.29052876]
[1735573037242,0.26706638,690.06,688.63,1.07575377]
[1735573038542,0.26706638,690.06,688.7,1.07575377]
[1735573039444,0.26706638,690.06,688.71,0.29039799]
[1735573039639,0.26706638,690.06,688.73,1.07575377]
[1735573039845,0.26706638,690.06,688.74,0.29038534]
[1735573040343,0.28982566,690.07,688.74,0.29038534]
[1735573041041,0.28982566,690.07,688.86,1.07575377]
[1735573042545,0.28982566,690.07,688.74,0.29038534]
[1735573042546,0.28982566,690.07,688.91,1.07575377]
[1735573043447,0.28982566,690.07,688.74,0.29038534]
[1735573043448,0.28982566,690.07,688.97,1.07575377]
[1735573044348,0.28982566,690.07,688.98,1.07575377]
[1735573045351,0.28982566,690.07,688.74,0.29038534]
[1735573045352,0.28982566,690.07,688.93,1.07575377]
[1735573046946,0.28982566,690.07,688.74,0.29038534]
[1735573046947,0.28982566,690.07,688.82,1.07575377]
[1735573047647,0.28982566,690.07,688.74,1.36613911]
[1735573048950,0.28982566,690.07,688.74,0.29038534]
[1735573050151,1.06475855,691.1,688.74,0.29038534]
[1735573050152,1.06475855,690.92,688.74,0.29038534]
[1735573050350,0.28951101,690.82,688.74,0.29038534]
[1735573050551,0.2669024,690.81,688.74,0.29038534]
[1735573050751,0.26692387,690.8,688.74,0.29038534]
[1735573050955,0.26692387,690.79,688.74,0.29038534]
[1735573051155,0.26692387,690.78,688.74,0.29038534]
[1735573051454,0.26692387,690.77,688.74,0.29038534]
[1735573051653,0.26692387,690.76,688.74,0.29038534]
[1735573051855,0.26692387,690.75,688.74,0.29038534]
[1735573052056,0.26692387,690.74,688.74,0.29038534]
[1735573052348,0.26692387,690.73,688.74,0.29038534]
[1735573052552,0.26692387,690.72,688.74,0.29038534]
[1735573052753,0.26692387,690.71,688.74,0.29038534]
[1735573052955,0.28951101,690.82,688.74,0.29038534]
[1735573052956,0.26692387,690.7,688.74,0.29038534]
[1735573053156,0.26692387,690.69,688.74,0.29038534]
[1735573053355,0.26692387,690.68,688.74,0.29038534]
[1735573053556,0.26692387,690.81,688.74,0.29038534]
[1735573053755,0.26692387,690.8,688.74,0.29038534]
[1735573053954,0.26685767,690.8,688.74,0.29038534]
[1735573054150,0.26685767,690.81,688.74,0.29038534]
[1735573054356,0.26685767,690.8,688.74,0.29038534]
[1735573054651,0.26685767,690.79,688.74,0.29038534]
[1735573054957,0.26685767,690.78,688.74,0.29038534]
[1735573055151,0.26685767,690.77,688.74,0.29038534]
[1735573055458,0.26685767,690.76,688.74,0.29038534]
[1735573055652,0.26685767,690.81,688.74,0.29038534]
[1735573055851,0.26683473,690.8,688.74,0.29038534]
[1735573056049,0.26683473,690.79,688.74,0.29038534]
[1735573056256,0.26683473,690.78,688.74,0.29038534]
[1735573056455,0.26683473,690.77,688.74,0.29038534]
[1735573056656,0.26683473,690.76,688.76,1.07551834]
[1735573056857,0.26683473,690.75,688.76,1.07551834]
[1735573057055,0.26683473,690.74,688.76,1.07551834]
[1735573057257,0.28951101,690.82,688.76,1.07551834]
[1735573057258,0.26683473,690.73,688.76,1.07551834]
[1735573057551,0.26683473,690.72,688.76,1.07551834]
[1735573057859,0.26683473,690.71,688.76,1.07551834]
[1735573058051,0.26683473,690.7,688.76,1.07551834]
[1735573058252,0.26683473,690.69,688.74,0.29038534]
[1735573058453,0.26682933,690.68,688.74,0.29038534]
[1735573058652,0.26682933,690.67,688.74,0.29038534]
[1735573058859,0.26682933,690.66,688.74,0.29038534]
[1735573059057,0.26682933,690.65,688.74,0.29038534]
[1735573059257,0.26682933,690.64,688.74,0.29038534]
[1735573059457,0.26682933,690.63,688.74,0.29038534]
[1735573059658,0.26682933,690.62,688.86,1.07606064]
[1735573059859,0.26682933,690.61,688.86,1.07606064]
[1735573060060,0.26682933,690.6,688.86,1.07606064]
[1735573060358,0.26682933,690.59,688.86,1.07606064]
[1735573060553,0.26682933,690.58,688.86,1.07606064]
[1735573060758,0.26682933,690.57,688.86,1.07606064]
[1735573060952,0.26682933,690.56,688.86,1.07606064]
[1735573061156,0.26682984,690.55,688.86,1.07606064]
[1735573061355,0.26682984,690.54,688.86,1.07606064]
[1735573061556,0.26682984,690.53,688.86,1.07606064]
[1735573061756,0.28951101,690.82,688.96,1.07606064]
[1735573061953,0.26681458,690.81,688.96,1.07606064]
[1735573063456,0.26681458,690.81,689.08,1.07606064]
[1735573064661,0.26681458,690.81,688.84,1.50026816]
[1735573064662,0.26681458,690.81,689.14,1.07606064]
[1735573066062,0.26681458,690.81,689.13,1.07606064]
[1735573066461,0.26678196,690.8,689.13,1.07606064]
[1735573066658,0.26678196,690.79,689.13,1.07606064]
[1735573066861,0.26678196,690.78,689.13,1.07606064]
[1735573067056,0.28951101,690.82,683.07,5.15920368]
[1735573067057,0.26678196,690.77,689.17,1.07606064]
[1735573067260,0.26678196,690.76,689.17,1.07606064]
[1735573067463,0.26678196,690.75,689.17,1.07606064]
[1735573067657,0.26678196,690.74,689.17,1.07606064]
[1735573067860,0.26678196,690.73,689.17,1.07606064]
[1735573068062,0.26678196,690.72,689.17,1.07606064]
[1735573068266,0.26678196,690.71,689.2,1.07606064]
[1735573068463,0.26678196,690.7,689.2,1.07606064]
[1735573068672,0.26678196,690.69,689.2,1.07606064]
[1735573068972,0.26677513,690.68,689.2,1.07606064]
[1735573069272,0.26677513,690.67,689.23,1.07606064]
[1735573069471,0.26677513,690.66,689.23,1.07606064]
[1735573069672,0.28951101,690.82,689.23,1.07606064]
[1735573069871,0.26674932,690.81,689.23,1.07606064]
[1735573070066,0.28951101,690.82,689.26,1.07606064]
[1735573070268,0.26672885,690.81,689.26,1.07606064]
[1735573070469,0.28951101,690.82,689.26,1.07606064]
[1735573071270,0.28951101,690.82,689.32,1.07606064]
[1735573072570,0.28951101,690.82,688.75,0.69522679]
[1735573072571,0.28951101,690.82,689.35,1.07606064]
[1735573074172,0.28951101,690.82,688.75,0.69522679]
[1735573074173,0.28951101,690.82,689.43,1.07606064]
[1735573075474,0.28951101,690.82,689.65,1.07606064]
[1735573075873,1.06345877,691.43,689.65,1.07606064]
[1735573076172,0.28926396,691.41,689.65,1.07606064]
[1735573076370,0.26657711,691.4,689.65,1.07606064]
[1735573076570,0.26657291,691.39,689.56,1.07606064]
[1735573076770,0.26657291,691.38,689.56,1.07606064]
[1735573076975,0.26657291,691.4,689.56,1.07606064]
[1735573077174,0.28926396,691.41,689.56,1.07606064]
[1735573077374,0.26658908,691.39,689.56,1.07606064]
[1735573077577,0.26658908,691.38,689.56,1.07606064]
[1735573077876,0.26658908,691.37,689.5,1.07606064]
[1735573078077,0.26658908,691.36,689.5,1.07606064]
[1735573078377,0.26658908,691.35,689.5,1.07606064]
[1735573078571,0.26658908,691.34,689.5,1.07606064]
[1735573078769,0.26658908,691.33,689.5,1.07606064]
[1735573078971,0.26658908,691.32,689.5,1.07606064]
[1735573079176,0.2665648,691.31,689.5,1.07606064]
[1735573079377,0.2665648,691.3,689.46,1.07606064]
[1735573079572,0.2665648,691.29,689.46,1.07606064]
[1735573079777,0.2665648,691.28,689.46,1.07606064]
[1735573079978,0.2665648,691.27,689.46,1.07606064]
[1735573080280,0.2665648,691.26,689.46,1.07606064]
[1735573080474,0.2665648,691.25,689.46,1.07606064]
[1735573080676,0.28926396,691.41,689.36,1.07606064]
[1735573080979,0.26655432,691.4,689.36,1.07606064]
[1735573081981,0.26655432,691.4,689.4,1.07606064]
[1735573082374,0.28926396,691.41,689.4,1.07606064]
[1735573082580,0.26650448,691.4,689.0,3.02751639]
[1735573082779,0.26650448,691.4,689.01,3.02751639]
[1735573082981,0.26650448,691.4,689.02,3.02751639]
[1735573083180,0.26650448,691.4,689.03,5.71564634]
[1735573083381,0.26649927,691.39,689.04,5.71564634]
[1735573083683,0.28926396,691.41,687.24,4.18153548]
[1735573083684,0.26649927,691.38,689.57,1.07268423]
[1735573083990,0.26648748,691.37,689.57,1.07268423]
[1735573084181,0.26648748,691.36,689.57,1.07268423]
[1735573084380,0.28926396,691.41,689.57,1.07268423]
[1735573084578,0.26648658,691.4,689.54,1.07268423]
[1735573085682,0.26648658,691.4,689.53,1.07268423]
[1735573085875,0.28926396,691.41,689.53,1.07268423]
[1735573086080,0.26648702,691.4,689.53,1.07268423]
[1735573086785,0.26648702,691.4,689.46,1.07268423]
[1735573088285,0.26648702,691.4,689.49,1.07268423]
[1735573088585,0.26648661,691.39,689.49,1.07268423]
[1735573088785,0.26648661,691.38,689.49,1.07268423]
[1735573088986,0.26648661,691.37,689.49,1.07268423]
[1735573089180,0.28926396,691.41,689.32,4.1700689]
[1735573089181,0.26648661,691.36,689.51,1.07268423]
[1735573089486,0.28926396,691.41,689.51,1.07268423]
[1735573089884,1.06416934,692.15,689.51,1.07268423]
[1735573090184,0.28896305,692.13,689.51,1.07268423]
[1735573090387,0.26637758,692.12,689.51,1.07268423]
[1735573090585,0.26637758,692.12,689.32,1.07268423]
[1735573090586,0.26637758,692.11,689.68,1.07268423]
[1735573090884,0.26637388,692.1,689.68,1.07268423]
[1735573091178,0.26637388,692.09,689.68,1.07268423]
[1735573091384,0.26637388,692.08,689.68,1.07268423]
[1735573091585,0.26637166,692.07,689.68,1.07268423]
[1735573091786,0.26637166,692.06,689.59,1.07268423]
[1735573091985,0.26637166,692.05,689.59,1.07268423]
[1735573092181,0.26637166,692.04,689.59,1.07268423]
[1735573092381,0.26637166,692.03,689.59,1.07268423]
[1735573092582,0.26637166,692.02,689.59,1.07268423]
[1735573092778,0.26637166,692.01,689.59,1.07268423]
[1735573092984,0.26637166,692.0,689.56,1.07268423]
[1735573093179,0.26637166,691.99,689.56,1.07268423]
[1735573093382,0.26637166,691.98,689.56,1.07268423]
[1735573093585,0.26637166,691.97,689.56,1.07268423]
[1735573093882,0.26637166,691.96,689.56,1.07268423]
[1735573094089,0.28896305,692.13,689.62,1.07268423]
[1735573094288,0.26630987,692.12,689.62,1.07268423]
[1735573094585,0.26630987,692.11,689.62,1.07268423]
[1735573094890,0.26630987,692.1,689.62,1.07268423]
[1735573095082,0.26630987,692.09,689.62,1.07268423]
[1735573095284,0.28896305,692.13,689.48,1.07268423]
[1735573095285,0.26630987,692.08,689.79,1.07268423]
[1735573095480,0.26630987,692.07,689.79,1.07268423]
[1735573095687,0.28896305,692.13,689.79,1.07268423]
[1735573095688,0.26630987,692.06,689.79,1.07268423]
[1735573095888,0.26630987,692.05,689.79,1.07268423]
[1735573096087,0.26627045,692.04,689.79,1.07268423]
[1735573096388,0.26627045,692.03,689.8,1.07268423]
[1735573096590,0.26627045,692.02,689.8,1.07268423]
[1735573096789,0.26627045,692.01,689.8,1.07268423]
[1735573096985,0.26627045,692.0,689.8,1.07268423]
[1735573097188,0.26627045,691.99,689.8,1.07268423]
[1735573097387,0.26625381,692.12,689.8,1.07268423]
[1735573097584,0.26625381,692.11,689.81,1.07268423]
[1735573097785,0.26625381,692.12,689.81,1.07268423]
[1735573097982,0.26625381,692.11,689.81,1.07268423]
[1735573098189,0.26625381,692.1,689.81,1.07268423]
[1735573098388,0.26625381,692.09,689.81,1.07268423]
[1735573098583,0.26632334,692.08,689.81,1.07268423]
[1735573098789,0.26632334,692.07,689.81,1.07268423]
[1735573098991,0.26632334,692.06,689.78,1.07268423]
[1735573099294,0.2663193,692.05,689.78,1.07268423]
[1735573099487,0.2663193,692.12,689.78,1.07268423]
[1735573099691,0.2663193,692.11,689.78,1.07268423]
[1735573099897,0.2663193,692.1,689.78,1.07268423]
[1735573100094,0.2663193,692.09,689.71,1.07268423]
[1735573100294,0.2663193,692.08,689.71,1.07268423]
[1735573100491,0.2663193,692.07,689.71,1.07268423]
[1735573100691,0.2663193,692.06,689.71,1.07268423]
[1735573100894,0.2663193,692.05,689.71,1.07268423]
[1735573101095,0.28896305,692.13,689.66,4.14926285]
[1735573101096,0.2663193,692.12,689.81,1.07268423]
[1735573101293,0.2663193,692.11,689.81,1.07268423]
[1735573101491,0.2663193,692.1,689.81,1.07268423]
[1735573101800,0.2663193,692.09,689.84,1.07268423]
[1735573101992,0.2663193,692.08,689.84,1.07268423]
[1735573102295,0.2663193,692.07,689.84,1.07268423]
[1735573102596,0.2663193,692.06,689.84,1.07268423]
[1735573102795,0.2663193,692.05,689.84,1.07268423]
[1735573102995,0.2663193,692.04,689.84,1.07268423]
[1735573103195,0.2663193,692.04,689.53,1.07268423]
[1735573103196,0.2663193,692.03,689.87,1.07268423]
[1735573103397,0.2663193,692.02,689.87,1.07268423]
[1735573103594,0.28896305,692.13,689.87,1.07268423]
[1735573103792,0.26622681,692.12,689.87,1.07268423]
[1735573104492,0.26622681,692.12,689.95,1.07268423]
[1735573106192,0.28896305,692.13,689.95,1.07268423]
[1735573106396,0.26622235,692.12,689.95,1.07268423]
[1735573106795,0.26622235,692.12,690.01,1.07268423]
[1735573106996,0.26624705,692.11,690.01,1.07268423]
[1735573107290,0.26624705,692.1,690.01,1.07268423]
[1735573107496,0.26624705,692.09,690.01,1.07268423]
[1735573107696,0.26624705,692.08,690.01,1.07268423]
[1735573107901,0.26624705,692.07,690.01,1.07268423]
[1735573108099,0.26624705,692.06,690.01,1.07268423]
[1735573108394,0.26624705,692.05,690.01,1.07268423]
[1735573108601,0.26624705,692.04,690.01,1.07268423]
[1735573108898,0.64,692.11,690.01,1.07268423]
[1735573108899,0.26624705,692.03,690.2,1.07268423]
[1735573109100,0.64,692.11,690.2,1.07268423]
[1735573109298,0.26618721,692.1,690.2,1.07268423]
[1735573109901,0.26618721,692.1,690.26,1.07268423]
[1735573111197,0.26618721,692.1,690.29,1.07268423]
[1735573111399,0.64,692.11,690.29,1.07268423]
[1735573112802,0.64,692.11,690.32,1.07268423]
[1735573114203,0.64,692.11,690.05,1.07268423]
[1735573115807,0.64,692.11,690.09,1.07268423]
[1735573116805,0.64,692.11,690.27,1.07268423]
[1735573117906,0.64,692.11,690.36,1.07268423]
[1735573118909,0.64,692.11,690.37,1.07268423]
[1735573120209,0.64,692.11,690.38,1.07268423]
[1735573121109,0.64,692.11,689.98,1.4706627]
[1735573121110,0.64,692.11,690.42,1.07268423]
[1735573121508,1.06416934,693.09,690.42,1.07268423]
[1735573121709,0.28857114,693.07,690.42,1.07268423]
[1735573122009,0.26598045,693.06,690.42,1.07268423]
[1735573122214,1.06416934,692.92,690.57,1.07268423]
[1735573122408,0.26598018,692.91,690.57,1.07268423]
[1735573123310,0.26598018,692.91,690.03,0.69045108]
[1735573123311,0.26598018,692.91,690.77,1.07268423]
[1735573123509,0.26598018,692.9,690.77,1.07268423]
[1735573123815,0.26598018,692.89,690.77,1.07268423]
[1735573124113,0.26598018,692.88,690.77,1.07268423]
[1735573124311,0.28857114,693.07,690.77,1.07268423]
[1735573124509,0.26605694,692.87,690.77,1.07268423]
[1735573124711,0.26605745,692.86,690.77,1.07268423]
[1735573124913,0.26605745,692.85,690.77,1.07268423]
[1735573125109,0.26605745,692.84,690.77,1.07268423]
[1735573125309,0.26605745,692.83,690.77,1.07268423]
[1735573125508,0.26605745,692.82,690.77,1.07268423]
[1735573125814,0.26605745,692.81,690.69,1.07268423]
[1735573126011,0.26605694,692.87,690.69,1.07268423]
[1735573126012,0.26605745,692.8,690.69,1.07268423]
[1735573126213,0.26605745,692.79,690.69,1.07268423]
[1735573126407,0.26605745,692.78,690.69,1.07268423]
[1735573126611,0.26605745,692.77,690.71,1.07268423]
[1735573126807,0.26605745,692.76,690.71,1.07268423]
[1735573127012,0.26605745,692.86,690.71,1.07268423]
[1735573127208,0.26605745,692.85,690.71,1.07268423]
[1735573127414,0.26605745,692.84,690.71,1.07268423]
[1735573127614,0.26605745,692.83,690.75,1.07268423]
[1735573127813,0.26605745,692.82,690.75,1.07268423]
[1735573128011,0.26605745,692.81,690.75,1.07268423]
[1735573128213,0.26605745,692.8,690.75,1.07268423]
[1735573128411,0.26605745,692.79,690.75,1.07268423]
[1735573128611,0.26605745,692.78,690.75,1.07268423]
[1735573128817,0.26605745,692.77,690.75,1.07268423]
[1735573129114,0.26605745,692.76,690.73,1.07268423]
[1735573129312,0.26605745,692.75,690.73,1.07268423]
[1735573129515,0.658,692.76,690.73,1.07268423]
[1735573129718,0.26605745,692.75,690.73,1.07268423]
[1735573130218,0.26614793,692.74,690.57,1.07268423]
[1735573130417,0.26614793,692.73,690.57,1.07268423]
[1735573130717,0.26614793,692.72,690.57,1.07268423]
[1735573130918,0.26614793,692.71,690.57,1.07268423]
[1735573131119,0.26614793,692.7,690.57,1.07268423]
[1735573131317,0.26614793,692.69,690.57,1.07268423]